{"text_format":"1","workbook":"xlsx","n_sheets":2,"sheets":["1","1_с ЦАОП"],"not_rendered":{"charts":0,"images":0,"macros":1,"external_links":1,"defined_names":2,"comments":0,"pivot_tables":0},"unopened":[],"bounds":{"document_bytes":16777216,"sheet_cells":100000,"rows_first":2000,"rows_last":500,"rows_between":2000,"halvings":0,"cell_chars":16384,"cell_head_chars":4096},"cells_cut":0,"cells_raw":0,"read":"whole","date_system":"1900"}

{"sheet":"1","index":0,"n_rows":42,"n_cols":17,"rows_kept":42,"cut":false,"hidden":true,"merged":[[6,15,7,15],[6,16,7,16],[1,0,1,16],[6,12,7,12],[6,13,7,13],[6,4,6,9],[6,0,7,0],[6,1,7,1],[6,2,7,2],[6,10,7,10],[6,3,7,3],[2,0,2,13],[3,0,3,13]]}
[null,null,null,null,null,null,null,null,null,null,null,null,null,null,null,null,"Приложение к форме 1ОТ"]
["Информация о количестве врачей (количестве занятых штатных должностей), участвующих в оказании первичной медико-санитарной помощи и о планируемых к выполнению объемах медицинской помощи на плановый 2024 год в амбулаторных условиях, в соответствии с подпунктами 16 и 18 пункта 105 Правил ОМС, утвержденных приказом Министерства здравоохранения Российской Федерации от 28.02.2019 №108н (с последующими изменениями)"]
["___________________________________________"]
["(наименование медицинской организации)"]
[]
[]
["Специальности ","Количество занятых штатных должностей врачей по утвержденному штатному расписанию по состоянию на __.___.2023г.     *)","Среднее число посещений в год на 1,0 занятую врачебную должность, установленное Приказом Министерства здравоохранения Пензенской области от 14.01.2015г. №2 \n(с последующими изменениями)","Расчетные объемы АПП, в соответствии с функцией врачебной должности и количеством занятых штатных должностей \n (в посещениях) ","Предложения МО о планируемых   к выполнению  в 2024 году объемов медицинской помощи,  в том числе:",null,null,null,null,null,"Информация о превышении планируемых МО к выполнению объемов медицинской помощи относительно количества занятых штатных должностей  и установленной функции врачебной должности ",null,"Диспансеризации (1 и 2 этапы) и профилактические осмотры  (в посещениях)","Посещения с профилактическими и иными целями, \nс учетом диспансеризаций и профилактических осмотров\n (в посещениях) ",null,"Неотложная медицинская помощь\n(посещения)","ИТОГО к выполнению объемы АПП с учетом неотложной медицинской помощи\n (в посещениях) \n\nгр. 14 = гр. 4 формы 1ОТ"]
[null,null,null,null,"Посещения с профилактическими и иными целями, \nбез учета диспансеризаций и профилактических осмотров\n (в посещениях) ","Посещения, в связи с заболеванием\n (в посещениях)",null,"Установленное  среднее число посещений по поводу заболеваний в одном обращении ","Обращения, в связи с заболеванием\n(в обращениях) ","ИТОГО к выполнению объемы АПП\n (в посещениях) "]
[1,2,3,"4=2*3",5,"6=4-5",null,7,"8=6/7","9=5+6","10=4-9",null,11,"12=5+11",null,13,"14=6+12+13"]
["Кардиология",null,4470,{"$f":"ROUND(B10*C10,0)","v":0},null,{"$f":"IF(ROUND(D10-E10,0)>0, ROUND(D10-E10,0),0)","v":0},{"$f":"IF(K10<0,1,0)","v":0},3.1,{"$f":"ROUND(F10/H10,0)","v":0},{"$f":"E10+F10","v":0},{"$f":"D10-J10","v":0},null,null,{"$f":"E10+M10","v":0},null,null,{"$f":"F10+N10+P10","v":0}]
["Кардиология детская",null,3470,{"$f":"ROUND(B11*C11,0)","v":0},null,null,null,3.1]
["Ревматология",null,3888,{"$f":"ROUND(B12*C12,0)","v":0},null,{"$f":"IF(ROUND(D12-E12,0)>0, ROUND(D12-E12,0),0)","v":0},{"$f":"IF(K12<0,1,0)","v":0},3.1,0,0,{"$f":"D12-J12","v":0},null,null,{"$f":"E12+M12","v":0},null,null,{"$f":"F12+N12+P12","v":0}]
["Педиатрия   **)",null,5224,0,null,{"$f":"IF(ROUND(D13-E13,0)>0, ROUND(D13-E13,0),0)","v":0},{"$f":"IF(K13<0,1,0)","v":0},2.8,0,0,0,null,null,0,null,null,0]
["Терапия   **)",null,5224,0,null,0,{"$f":"IF(K14<0,1,0)","v":0},2.7,{"$f":"ROUND(F14/H14,0)","v":0},0,0,null,null,0,null,null,0]
["Пульмонология ",null,2724,0,null,{"$f":"IF(ROUND(D15-E15,0)>0, ROUND(D15-E15,0),0)","v":0},0,2.7,0,0,0,null,null,0,null,null,0]
["Гастроэнтерология",null,4315,0,null,0,0,2.7,0,0,0,null,null,0,null,null,0]
["Нефрология (без учета заместительной почечной терапии)",null,2231,0,null,0,0,2.7,0,0,0,null,null,0,null,null,0]
["Гематология",null,3779,0,null,0,0,2.7,0,0,0,null,null,0,null,null,0]
["Эндокринология, эндокринология детская",null,3869,0,null,0,0,2.5,0,0,0,null,null,0,null,null,0]
["Аллергология",null,3450,0,null,0,0,2.6,0,0,0,null,null,0,null,null,0]
["Неврология ",null,4600,0,null,0,0,2.9,0,0,0,null,null,0,null,null,0]
["Инфекционные болезни ",null,3800,0,null,0,0,2.4,0,0,0,null,null,0,null,null,0]
["Хирургия ",null,5500,0,null,0,0,3,0,0,0,null,null,0,null,null,0]
["Хирургия детская",null,5800,0,null,0,0,3,null,0,0]
["Сердечно-сосудистая хирургия",null,2500,0,null,0,0,3,0,0,0,null,null,{"$f":"E25+M25","v":0},null,null,{"$f":"F25+N25+P25","v":0}]
["Травматология -ортопедия",null,5500,0,null,0,0,3,0,0,0,null,null,0,null,null,0]
["Нейрохирургия",null,2100,0,null,0,0,3,0,0,0,null,null,0,null,null,0]
["Онкология, онкология детская",null,3750,0,null,0,0,3,0,0,0,null,null,0,null,null,0]
["Колопроктология",null,2200,0,null,0,0,3,0,0,0,null,null,0,null,null,0]
["Урология ",null,4211,0,null,0,0,2.6,0,0,0,null,null,0,null,null,0]
["Стоматология ***)",null,3790,0,null,0,0,3,0,0,0,null,null,0,null,null,0]
["Акушерство-гинекология",null,5282,0,null,0,0,3.8,0,0,0,null,null,0,null,null,0]
["Отоларингология ",null,4910,0,null,0,0,4.0999999999999996,0,0,0,null,null,0,null,null,0]
["Офтальмология",null,4870,0,null,0,0,3.8,{"$f":"ROUND(F34/H34,0)","v":0},0,0,null,null,0,null,null,0]
["Дерматология ",null,5400,0,null,0,0,4.2,{"$f":"ROUND(F35/H35,0)","v":0},0,0,null,null,0,null,null,0]
["Гериатрия",null,2904,{"$f":"ROUND(B36*C36,0)","v":0},null,0,{"$f":"IF(K36<0,1,0)","v":0},0,0,{"$f":"E36+F36","v":0},{"$f":"D36-J36","v":0},null,null,0,null,null,0]
["Челюстно-лицевая хирургия",null,2000,0,null,null,null,3,{"$f":"ROUND(F37/H37,0)","v":0},{"$f":"E37+F37","v":0},{"$f":"D37-J37","v":0},null,null,0,null,null,0]
["ИТОГО",{"$f":"SUM(B10:B37)","v":0},null,{"$f":"SUM(D10:D37)","v":0},{"$f":"SUM(E10:E37)","v":0},0,null,null,{"$f":"SUM(I10:I37)","v":0},0,0,null,{"$f":"SUM(M10:M37)","v":0},0,null,{"$f":"SUM(P10:P37)","v":0},0]
[]
["*) Утвержденное постоянное штатное расписание, действующее на дату подачи Уведомления."]
["**) с учетом занятых должностей по Центрам здоровья."]
["***) По специальности \"Стоматология\" количество занятых штатных должностей врачей по утвержденному штатному расписанию указывается с учетом количества занятых штатных должностей среднего медицинского персонала (зубные врачи)."]

{"sheet":"1_с ЦАОП","index":1,"n_rows":43,"n_cols":23,"rows_kept":43,"cut":false,"hidden":false,"merged":[[6,20,8,20],[6,21,8,21],[7,2,8,2],[7,5,8,5],[7,7,8,7],[7,10,8,10],[7,11,8,11],[7,13,8,13],[1,0,1,22],[2,0,2,18],[3,0,3,18],[6,0,8,0],[6,1,8,1],[6,3,8,3],[6,4,8,4],[6,5,6,14],[6,15,8,15],[6,17,8,17],[7,22,8,22],[6,18,8,18]]}
[null,null,null,null,null,null,null,null,null,null,null,null,null,null,null,null,null,null,null,null,null,"Приложение №1 к форме 1ОТ (для МО, не имеющих прикрепленного населения)"]
["Информация о количестве врачей (количестве занятых штатных должностей), участвующих в оказании первичной медико-санитарной помощи и о планируемых к выполнению объемах медицинской помощи на плановый 2024 год в амбулаторных условиях, в соответствии с подпунктами 16 и 18 пункта 105 Правил ОМС, утвержденных приказом Министерства здравоохранения Российской Федерации от 28.02.2019 №108н (с последующими изменениями)"]
["_____________________________________________________________________"]
["(наименование медицинской организации)"]
[]
[]
["Специальности ","Количество занятых штатных должностей врачей по утвержденному штатному расписанию по состоянию на __.___.2023г.     *)","из них:","Среднее число посещений в год на 1,0 занятую врачебную должность, установленное Приказом Министерства здравоохранения Пензенской области от 14.01.2015г. №2 \n(с последующими изменениями)","Расчетные объемы АПП, в соответствии с функцией врачебной должности и количеством занятых штатных должностей \n (в посещениях) ","Предложения МО о планируемых   к выполнению  в 2024 году объемов медицинской помощи,  в том числе:",null,null,null,null,null,null,null,null,null,"Информация о превышении планируемых МО к выполнению объемов медицинской помощи относительно количества занятых штатных должностей  и установленной функции врачебной должности ",null,"Диспансеризации \n(1 и 2 этапы) и профилактические осмотры  (в посещениях)","Посещения с профилактическими и иными целями, \nс учетом диспансеризаций и профилактических осмотров\n (в посещениях) ",null,"Неотложная медицинская помощь\n(посещения)","ИТОГО к выполнению объемы АПП с учетом неотложной медицинской помощи\n (в посещениях) \n\nгр. 14 = гр. 4 формы 1ОТ","из них:"]
[null,null,"Центры амбулаторной онкологической помощи",null,null,"Посещения с профилактическими и иными целями, \nбез учета диспансеризаций и профилактических осмотров\n (в посещениях) ","из них:","Посещения, в связи с заболеванием\n (в посещениях)",null,"из них:","Установленное  среднее число посещений по поводу заболеваний в одном обращении ","Обращения, в связи с заболеванием\n(в обращениях) ","из них:","ИТОГО к выполнению объемы АПП\n (в посещениях) ","из них:",null,null,null,null,null,null,null,"Центры амбулаторной онкологической помощи\n (в посещениях)"]
[null,null,null,null,null,null,"Центры амбулаторной онкологической помощи\n (в посещениях) ",null,null,"Центры амбулаторной онкологической помощи\n (в посещениях)",null,null,"Центры амбулаторной онкологической помощи\n(в обращениях) ",null,"Центры амбулаторной онкологической помощи"]
[1,2,"2.1.",3,"4=2*3",5,"5.1.","6=4-5",null,"6.1.",7,"8=6/7","8.1.","9=5+6","9.1.","10=4-9",null,11,"12=5+11",null,13,"14=6+12+13","14.1."]
["Кардиология",null,null,4470,{"$f":"ROUND(B11*D11,0)","v":0},null,null,{"$f":"IF(ROUND(E11-F11,0)>0, ROUND(E11-F11,0),0)","v":0},{"$f":"IF(P11<0,1,0)","v":0},null,3.1,{"$f":"ROUND(H11/$K11,0)","v":0},{"$f":"ROUND(J11/$K11,0)","v":0},{"$f":"F11+H11","v":0},{"$f":"G11+J11","v":0},{"$f":"E11-N11","v":0},null,null,{"$f":"F11+R11","v":0},null,null,{"$f":"H11+S11+U11","v":0},{"$f":"O11","v":0}]
["Кардиология детская",null,null,3470,{"$f":"ROUND(B12*D12,0)","v":0},null,null,{"$f":"IF(ROUND(E12-F12,0)>0, ROUND(E12-F12,0),0)","v":0},null,null,3.1,{"$f":"ROUND(H12/$K12,0)","v":0},{"$f":"ROUND(J12/$K12,0)","v":0},{"$f":"F12+H12","v":0},{"$f":"G12+J12","v":0},{"$f":"E12-N12","v":0},null,null,{"$f":"F12+R12","v":0},null,null,0,0]
["Ревматология",null,null,3888,0,null,null,{"$f":"IF(ROUND(E13-F13,0)>0, ROUND(E13-F13,0),0)","v":0},{"$f":"IF(P13<0,1,0)","v":0},null,3.1,0,0,0,0,0,null,null,0,null,null,0,0]
["Педиатрия   **)",null,null,5224,0,null,null,{"$f":"IF(ROUND(E14-F14,0)>0, ROUND(E14-F14,0),0)","v":0},{"$f":"IF(P14<0,1,0)","v":0},null,2.8,0,0,0,0,0,null,null,{"$f":"F14+R14","v":0},null,null,0,0]
["Терапия   **)",null,null,5224,0,null,null,{"$f":"IF(ROUND(E15-F15,0)>0, ROUND(E15-F15,0),0)","v":0},0,null,2.7,{"$f":"ROUND(H15/$K15,0)","v":0},0,0,0,0,null,null,0,null,null,0,0]
["Пульмонология ",null,null,2724,0,null,null,{"$f":"IF(ROUND(E16-F16,0)>0, ROUND(E16-F16,0),0)","v":0},0,null,2.7,0,0,0,0,0,null,null,0,null,null,0,0]
["Гастроэнтерология",null,null,4315,0,null,null,{"$f":"IF(ROUND(E17-F17,0)>0, ROUND(E17-F17,0),0)","v":0},0,null,2.7,0,0,0,0,0,null,null,0,null,null,0,0]
["Нефрология (без учета заместительной почечной терапии)",null,null,2231,0,null,null,0,0,null,2.7,0,0,0,0,0,null,null,0,null,null,0,0]
["Гематология",null,null,3779,0,null,null,0,0,null,2.7,0,0,0,0,0,null,null,0,null,null,0,0]
["Эндокринология, эндокринология детская",null,null,3869,0,null,null,0,0,null,2.5,0,0,0,0,0,null,null,0,null,null,0,0]
["Аллергология",null,null,3450,0,null,null,0,0,null,2.6,0,0,0,0,0,null,null,0,null,null,0,0]
["Неврология ",null,null,4600,0,null,null,0,0,null,2.9,0,0,0,0,0,null,null,0,null,null,0,0]
["Инфекционные болезни ",null,null,3800,0,null,null,0,0,null,2.4,0,0,0,0,0,null,null,0,null,null,0,0]
["Хирургия ",null,null,5500,0,null,null,0,0,null,3,0,0,0,0,0,null,null,0,null,null,0,0]
["Хирургия детская",null,null,5800,0,null,null,0,null,null,3,0,0,0,0,0,null,null,0,null,null,0,0]
["Сердечно-сосудистая хирургия",null,null,2500,0,null,null,0,0,null,3,0,0,0,0,0,null,null,0,null,null,0,0]
["Травматология -ортопедия",null,null,5500,0,null,null,0,0,null,3,0,0,0,0,0,null,null,0,null,null,0,0]
["Нейрохирургия",null,null,2100,0,null,null,0,0,null,3,0,0,0,0,0,null,null,0,null,null,0,0]
["Онкология, онкология детская",null,null,3750,0,null,null,0,0,null,3,0,0,0,0,0,null,null,0,null,null,0,0]
["Колопроктология",null,null,2200,0,null,null,0,0,null,3,0,0,0,0,0,null,null,0,null,null,0,0]
["Урология ",null,null,4211,0,null,null,0,0,null,2.6,0,0,0,0,0,null,null,0,null,null,0,0]
["Стоматология ***)",null,null,3790,0,null,null,0,0,null,3,0,0,0,0,0,null,null,0,null,null,0,0]
["Акушерство-гинекология",null,null,5282,0,null,null,0,0,null,3.8,0,0,0,0,0,null,null,0,null,null,0,0]
["Отоларингология ",null,null,4910,0,null,null,0,0,null,4.0999999999999996,0,0,0,0,0,null,null,0,null,null,0,0]
["Офтальмология",null,null,4870,0,null,null,0,0,null,3.8,0,0,0,0,0,null,null,0,null,null,0,0]
["Дерматология ",null,null,5400,0,null,null,0,0,null,4.2,0,0,0,0,0,null,null,0,null,null,0,0]
["Гериатрия",null,null,2904,0,null,null,0,0,null,0,0,0,0,0,0,null,null,0,null,null,0,0]
["Челюстно-лицевая хирургия",null,null,2000,0,null,null,0,null,null,3,{"$f":"ROUND(H38/K38,0)","v":0},0,0,0,0,null,null,0,null,null,0,0]
["ИТОГО",{"$f":"SUM(B11:B38)","v":0},{"$f":"SUM(C11:C38)","v":0},null,{"$f":"SUM(E11:E38)","v":0},{"$f":"SUM(F11:F38)","v":0},0,0,0,0,null,0,0,0,0,0,null,{"$f":"SUM(R11:R38)","v":0},0,null,{"$f":"SUM(U11:U38)","v":0},0,0]
[]
["*) Утвержденное постоянное штатное расписание, действующее на дату подачи Уведомления."]
["**) с учетом занятых должностей по Центрам здоровья."]
["***) По специальности \"Стоматология\" количество занятых штатных должностей врачей по утвержденному штатному расписанию указывается с учетом количества занятых штатных должностей среднего медицинского персонала (зубные врачи)."]